lending/lending_fUSD_20250808
["ID","MTS","AMOUNT","RATE_DAILY","PERIOD"]
[378016072,1754669445393,-400.0,0.00018397,2]
[378016074,1754669445402,-400.0,0.00018397,2]
[378016075,1754669445411,-400.0,0.00018397,2]
[378016077,1754669445421,-443.79,0.00018397,2]
[378016079,1754669445430,-400.0,0.00018397,2]
[378016081,1754669445439,-400.0,0.00018397,2]
[378016083,1754669445448,-400.0,0.00018397,2]
[378016085,1754669445457,-520.89,0.00018397,2]
[378016087,1754669445467,-400.0,0.00018397,2]
[378016089,1754669445476,-400.0,0.00018397,2]
[378016090,1754669445486,-578.65,0.00018397,2]
[378016091,1754669445495,-403.78358687,0.00018397,2]
[378016092,1754669445504,-400.0,0.00018397,2]
[378016093,1754669445513,-400.0,0.00018397,2]
[378016094,1754669445523,-400.0,0.00018397,2]
[378016095,1754669445532,-400.0,0.00018397,2]
[378016096,1754669445542,-400.0,0.00018397,2]
[378016097,1754669445551,-500.82,0.00018397,2]
[378016098,1754669445561,-400.0,0.00018397,2]
[378016099,1754669445570,-409.60095299,0.00018397,2]
[378016100,1754669445579,-400.0,0.00018397,2]
[378016101,1754669445588,-400.0,0.00018397,2]
[378016102,1754669445597,-400.0,0.00018397,2]
[378016103,1754669445607,-507.47578871,0.00018397,2]
[378016104,1754669445616,-508.65,0.00018397,2]
[378016105,1754669445625,-405.14483771,0.00018397,2]
[378016106,1754669445635,-438.64,0.00018397,2]
[378016107,1754669445644,-403.87217891,0.00018397,2]
[378016108,1754669445654,-400.0,0.00018397,2]
[378016109,1754669445663,-400.0,0.00018397,2]
[378016110,1754669445673,-402.41175954,0.00018397,2]
[378016111,1754669445683,-400.0,0.00018397,2]
[378016112,1754669445696,-400.0,0.00018397,2]
[378016113,1754669445705,-401.07268115,0.00018397,2]
[378016114,1754669445715,-400.0,0.00018397,2]
[378016115,1754669445724,-400.0,0.00018397,2]
[378016116,1754669445734,-400.0,0.00018397,2]
[378016117,1754669445744,-400.0,0.00018397,2]
[378016118,1754669445753,-431.02,0.00018397,2]
[378016119,1754669445763,-460.63,0.00018397,2]
[378016120,1754669445773,-453.32,0.00018397,2]
[378016121,1754669445782,-539.9054286,0.00018397,2]
[378016122,1754669445791,-528.12,0.00018397,2]
[378016123,1754669445800,-400.0,0.00018397,2]
[378016124,1754669445810,-400.0,0.00018397,2]
[378016125,1754669445819,-400.0,0.00018397,2]
[378016126,1754669445828,-400.0,0.00018397,2]
[378016127,1754669445838,-542.52,0.00018397,2]
[378016128,1754669445848,-400.0,0.00018397,2]
[378016129,1754669445858,-414.55,0.00018397,2]
[378016130,1754669445867,-501.96,0.00018397,2]
[378016131,1754669445876,-478.05,0.00018397,2]
[378016132,1754669445885,-502.35,0.00018397,2]
[378016133,1754669445894,-400.0,0.00018397,2]
[378016134,1754669445903,-400.0,0.00018397,2]
[378016135,1754669445913,-400.0,0.00018397,2]
[378016136,1754669445923,-400.0,0.00018397,2]
[378016137,1754669445933,-400.0,0.00018397,2]
[378016138,1754669445942,-400.0,0.00018397,2]
[378016139,1754669445951,-400.0,0.00018397,2]
[378016140,1754669445960,-400.0,0.00018397,2]
[378016141,1754669445970,-400.0,0.00018397,2]
[378016142,1754669445979,-500.0,0.00018397,2]
[378016143,1754669445988,-296.36,0.00018397,2]
[378016144,1754669445998,-400.0,0.00018397,2]
[378016145,1754669446008,-434.79,0.00018397,2]
[378016146,1754669446017,-400.0,0.00018397,2]
[378016147,1754669446026,-537.65,0.00018397,2]
[378016148,1754669446035,-400.0,0.00018397,2]
[378016149,1754669446045,-436.33,0.00018397,2]
[378016150,1754669446054,-400.0,0.00018397,2]
[378016151,1754669446063,-400.0,0.00018397,2]
[378016152,1754669446072,-400.0,0.00018397,2]
[378016153,1754669446082,-579.55,0.00018397,2]
[378016154,1754669446091,-400.0,0.00018397,2]
[378016155,1754669446100,-400.0,0.00018397,2]
[378016156,1754669446110,-400.0,0.00018397,2]
[378016157,1754669446119,-405.32960383,0.00018397,2]
[378016158,1754669446128,-400.0,0.00018397,2]
[378016159,1754669446138,-400.0,0.00018397,2]
[378016160,1754669446147,-400.0,0.00018397,2]
[378016161,1754669446156,-400.0,0.00018397,2]
[378016162,1754669446166,-400.0,0.00018397,2]
[378016163,1754669446175,-400.0,0.00018397,2]
[378016164,1754669446184,-400.0,0.00018397,2]
[378016165,1754669446193,-400.0,0.00018397,2]
[378016166,1754669446203,-465.91,0.00018397,2]
[378016167,1754669446212,-400.0,0.00018397,2]
[378016168,1754669446222,-400.0,0.00018397,2]
[378016169,1754669446231,-400.0,0.00018397,2]
[378016170,1754669446241,-400.0,0.00018397,2]
[378016171,1754669446250,-400.0,0.00018397,2]
[378016172,1754669446259,-400.0,0.00018397,2]
[378016173,1754669446269,-400.0,0.00018397,2]
[378016174,1754669446281,-662.47,0.00018397,2]
[378016175,1754669446291,-458.85,0.00018397,2]
[378016176,1754669446300,-400.0,0.00018397,2]
[378016177,1754669446310,-400.0,0.00018397,2]
[378016178,1754669446319,-291.11330482,0.00018397,2]
[378016179,1754669446328,-400.0,0.00018397,2]
[378016180,1754669446337,-400.0,0.00018397,2]
[378016181,1754669446347,-400.0,0.00018397,2]
[378016182,1754669446357,-400.0,0.00018397,2]
[378016183,1754669446366,-400.0,0.00018397,2]
[378016184,1754669446375,-400.0,0.00018397,2]
[378016185,1754669446384,-500.0,0.00018397,2]
[378016186,1754669446394,-400.0,0.00018397,2]
[378016187,1754669446403,-400.0,0.00018397,2]
[378016188,1754669446412,-400.0,0.00018397,2]
[378016189,1754669446422,-400.0,0.00018397,2]
[378016190,1754669446431,-400.0,0.00018397,2]
[378016191,1754669446440,-400.0,0.00018397,2]
[378016192,1754669446450,-531.87,0.00018397,2]
[378016193,1754669446459,-400.0,0.00018397,2]
[378016194,1754669446468,-433.69,0.00018397,2]
[378016195,1754669446478,-400.0,0.00018397,2]
[378016196,1754669446487,-400.0,0.00018397,2]
[378016197,1754669446496,-400.0,0.00018397,2]
[378016198,1754669446505,-400.0,0.00018397,2]
[378016199,1754669446515,-547.84,0.00018397,2]
[378016200,1754669446524,-400.0,0.00018397,2]
[378016201,1754669446533,-400.0,0.00018397,2]
[378016202,1754669446543,-400.0,0.00018397,2]
[378016203,1754669446552,-400.0,0.00018397,2]
[378016204,1754669446561,-400.0,0.00018397,2]
[378016205,1754669446570,-1483.89,0.00018397,2]
[378016206,1754669446579,-400.0,0.00018397,2]
[378016207,1754669446588,-400.0,0.00018397,2]
[378016208,1754669446598,-400.0,0.00018397,2]
[378016209,1754669446607,-452.85,0.00018397,2]
[378016210,1754669446616,-400.0,0.00018397,2]
[378016211,1754669446626,-400.0,0.00018397,2]
[378016212,1754669446635,-400.0,0.00018397,2]
[378016213,1754669446645,-400.0,0.00018397,2]
[378016214,1754669446654,-400.0,0.00018397,2]
[378016215,1754669446664,-400.0,0.00018397,2]
[378016216,1754669446673,-400.0,0.00018397,2]
[378016217,1754669446683,-500.86,0.00018397,2]
[378016218,1754669446695,-400.0,0.00018397,2]
[378016219,1754669446705,-400.0,0.00018397,2]
[378016220,1754669446714,-400.0,0.00018397,2]
[378016221,1754669446724,-518.62,0.00018397,2]
[378016222,1754669446808,-408.77,0.00018397,2]
[378016223,1754669446818,-400.0,0.00018397,2]
[378016224,1754669446828,-400.0,0.00018397,2]
[378016225,1754669446838,-400.0,0.00018397,2]
[378016226,1754669446847,-400.0,0.00018397,2]
[378016227,1754669446856,-419.4,0.00018397,2]
[378016228,1754669446866,-400.0,0.00018397,2]
[378016229,1754669446876,-400.0,0.00018397,2]
[378016230,1754669446885,-400.0,0.00018397,2]
[378016231,1754669446894,-300.0,0.00018397,2]
[378016232,1754669446903,-400.0,0.00018397,2]
[378016233,1754669446913,-400.0,0.00018397,2]
[378016234,1754669446923,-400.0,0.00018397,2]
[378016235,1754669446932,-400.0,0.00018397,2]
[378016236,1754669446942,-400.0,0.00018397,2]
[378016237,1754669446952,-400.0,0.00018397,2]
[378016238,1754669446960,-5082.64,0.00018397,2]
[378016239,1754669446970,-493.26,0.00018397,2]
[378016240,1754669446979,-526.3,0.00018397,2]
[378016241,1754669446988,-400.0,0.00018397,2]
[378016242,1754669446998,-400.0,0.00018397,2]
[378016243,1754669447007,-400.0,0.00018397,2]
[378016244,1754669447016,-400.0,0.00018397,2]
[378016245,1754669447025,-400.0,0.00018397,2]
[378016246,1754669447034,-400.0,0.00018397,2]
[378016247,1754669447044,-1574.43,0.00018397,2]
[378016248,1754669447054,-400.0,0.00018397,2]
[378016249,1754669447062,-400.0,0.00018397,2]
[378016250,1754669447072,-400.0,0.00018397,2]
[378016251,1754669447082,-470.32,0.00018397,2]
[378016252,1754669447091,-400.0,0.00018397,2]
[378016253,1754669447100,-400.0,0.00018397,2]
[378016254,1754669447110,-400.0,0.00018397,2]
[378016255,1754669447119,-499.17,0.00018397,2]
[378016256,1754669447128,-400.0,0.00018397,2]
[378016257,1754669447137,-1383.82,0.00018397,2]
[378016258,1754669447146,-489.28,0.00018397,2]
[378016259,1754669447156,-335.53002335,0.00018397,2]
[378016260,1754669447165,-865.71,0.00018397,2]
[378016261,1754669447175,-400.0,0.00018397,2]
[378016262,1754669447184,-400.0,0.00018397,2]
[378016263,1754669447193,-763.19,0.00018397,2]
[378016264,1754669447203,-400.0,0.00018397,2]
[378016265,1754669447212,-436.71,0.00018397,2]
[378016266,1754669447220,-400.0,0.00018397,2]
[378016267,1754669447230,-1642.57,0.00018397,2]
[378016268,1754669447239,-400.0,0.00018397,2]
[378016269,1754669447248,-400.0,0.00018397,2]
[378016270,1754669447257,-400.0,0.00018397,2]
[378016271,1754669447266,-400.0,0.00018397,2]
[378016272,1754669447276,-414.27,0.00018397,2]
[378016273,1754669447286,-582.35,0.00018397,2]
[378016274,1754669447295,-400.0,0.00018397,2]
[378016275,1754669447304,-400.0,0.00018397,2]
[378016276,1754669447314,-400.0,0.00018397,2]
[378016277,1754669447324,-400.0,0.00018397,2]
[378016278,1754669447333,-502.3,0.00018397,2]
[378016279,1754669447346,-400.0,0.00018397,2]
[378016280,1754669447356,-400.0,0.00018397,2]
[378016281,1754669447366,-400.0,0.00018397,2]
[378016282,1754669447375,-400.0,0.00018397,2]
[378016283,1754669447385,-400.0,0.00018397,2]
[378016284,1754669447394,-400.0,0.00018397,2]
[378016285,1754669447403,-400.0,0.00018397,2]
[378016286,1754669447413,-400.0,0.00018397,2]
[378016287,1754669447427,-400.0,0.00018397,2]
[378016288,1754669447435,-554.21,0.00018397,2]
[378016289,1754669447445,-536.27,0.00018397,2]
[378016290,1754669447454,-400.0,0.00018397,2]
[378016291,1754669447463,-400.0,0.00018397,2]
[378016292,1754669447472,-401.33448311,0.00018397,2]
[378016293,1754669447482,-438.89,0.00018397,2]
[378016294,1754669447491,-760.61,0.00018397,2]
[378016295,1754669447500,-500.0,0.00018397,2]
[378016296,1754669447509,-400.0,0.00018397,2]
[378016297,1754669447519,-400.0,0.00018397,2]
[378016298,1754669447529,-1278.86,0.00018397,2]
[378016299,1754669447538,-400.0,0.00018397,2]
[378016300,1754669447548,-772.31,0.00018397,2]
[378016301,1754669447558,-400.0,0.00018397,2]
[378016302,1754669447567,-400.0,0.00018397,2]
[378016303,1754669447576,-400.0,0.00018397,2]
[378016304,1754669447586,-3084.06,0.00018397,2]
[378016305,1754669447595,-400.0,0.00018397,2]
[378016306,1754669447605,-534.26,0.00018397,2]
[378016307,1754669447614,-400.0,0.00018397,2]
[378016308,1754669447623,-537.01,0.00018397,2]
[378016309,1754669447633,-400.0,0.00018397,2]
[378016310,1754669447642,-400.0,0.00018397,2]
[378016311,1754669447651,-400.0,0.00018397,2]
[378016312,1754669447661,-3353.0,0.00018397,2]
[378016313,1754669447671,-400.0,0.00018397,2]
[378016314,1754669447680,-693.11,0.00018397,2]
[378016315,1754669447690,-400.0,0.00018397,2]
[378016316,1754669447702,-11768.25,0.00018397,2]
[378016317,1754669447712,-400.0,0.00018397,2]
[378016318,1754669447720,-400.0,0.00018397,2]
[378016319,1754669447730,-400.0,0.00018397,2]
[378016320,1754669447739,-412.67,0.00018397,2]
[378016321,1754669447749,-400.0,0.00018397,2]
[378016322,1754669447758,-400.0,0.00018397,2]
[378016323,1754669447767,-400.0,0.00018397,2]
[378016324,1754669447779,-400.0,0.00018397,2]
[378016325,1754669447788,-400.0,0.00018397,2]
[378016326,1754669447797,-400.0,0.00018397,2]
[378016327,1754669447807,-548.19,0.00018397,2]
[378016328,1754669447816,-400.0,0.00018397,2]
[378016329,1754669447825,-400.0,0.00018397,2]
[378016330,1754669447834,-400.0,0.00018397,2]
[378016331,1754669447844,-400.0,0.00018397,2]
[378016332,1754669447854,-400.0,0.00018397,2]
[378016333,1754669447864,-400.0,0.00018397,2]
[378016334,1754669447873,-400.0,0.00018397,2]
[378016335,1754669447883,-842.93,0.00018397,2]
[378016336,1754669447893,-400.0,0.00018397,2]
[378016337,1754669447902,-400.0,0.00018397,2]
[378016338,1754669447912,-400.0,0.00018397,2]
[378016339,1754669447923,-593.89,0.00018397,2]
[378016340,1754669447932,-400.0,0.00018397,2]
[378016341,1754669447942,-400.0,0.00018397,2]
[378016342,1754669447952,-2566.79,0.00018397,2]
[378016343,1754669447961,-1773.58,0.00018397,2]
[378016344,1754669447970,-400.0,0.00018397,2]
[378016345,1754669447980,-500.0,0.00018397,2]
[378016346,1754669447990,-5885.79142521,0.00018417,2]
[378016347,1754669447999,-519.47,0.00018433,2]
[378016348,1754669448008,-150.0,0.00018444,2]
[378016349,1754669448018,-500.0,0.00018452,2]
[378016350,1754669448027,-1650.0,0.00018453,2]
[378016351,1754669448036,-500.0,0.0001847,2]
[378016352,1754669448045,-173.94236,0.0001848,2]
[378016353,1754669448054,-173.94236,0.0001848,2]
[378016354,1754669448064,-173.94236,0.0001848,2]
[378016355,1754669448073,-173.94237,0.0001848,2]
[378016356,1754669448082,-173.94236,0.0001848,2]
[378016357,1754669448092,-173.94236,0.0001848,2]
[378016358,1754669448101,-579.16,0.00018494,2]
[378016359,1754669448111,-500.0,0.00018494,2]
[378016360,1754669448120,-500.0,0.00018494,2]
[378016361,1754669448129,-500.0,0.00018494,2]
[378016362,1754669448139,-500.0,0.00018494,2]
[378016363,1754669448149,-500.0,0.00018494,2]
[378016364,1754669448159,-204.91396275,0.00018494,2]
[378016365,1754669448169,-7095.10274429,0.00018495,2]
[378016366,1754669448179,-267.44,0.00018495,2]
[378016367,1754669448189,-457.08610443,0.00018495,2]
[378016368,1754669448198,-791.36,0.00018495,2]
[378016369,1754669448207,-400.0,0.00018495,2]
[378016370,1754669448216,-400.0,0.00018495,2]
[378016371,1754669448225,-400.0,0.00018495,2]
[378016372,1754669448234,-400.0,0.00018495,2]
[378016373,1754669448244,-400.0,0.00018495,2]
[378016374,1754669448255,-400.0,0.00018495,2]
[378016375,1754669448264,-400.0,0.00018495,2]
[378016376,1754669448274,-400.0,0.00018495,2]
[378016377,1754669448283,-400.0,0.00018495,2]
[378016378,1754669448292,-472.99,0.00018495,2]
[378016379,1754669448302,-400.0,0.00018495,2]
[378016380,1754669448311,-400.0,0.00018495,2]
[378016381,1754669448320,-400.0,0.00018495,2]
[378016382,1754669448330,-400.0,0.00018495,2]
[378016383,1754669448339,-400.0,0.00018495,2]
[378016384,1754669448349,-662.74,0.00018495,2]
[378016385,1754669448358,-1562.64,0.00018495,2]
[378016386,1754669448368,-1278.69,0.00018495,2]
[378016387,1754669448378,-507.46,0.00018495,2]
[378016388,1754669448387,-471.7,0.00018495,2]
[378016389,1754669448396,-628.16,0.00018495,2]
[378016390,1754669448406,-415.57,0.00018495,2]
[378016391,1754669448416,-400.0,0.00018495,2]
[378016392,1754669448425,-400.0,0.00018495,2]
[378016393,1754669448435,-940.95,0.00018495,2]
[378016394,1754669448444,-637.49,0.00018495,2]
[378016395,1754669448454,-1520.75,0.00018495,2]
[378016396,1754669448463,-400.0,0.00018495,2]
[378016397,1754669448473,-1243.34,0.00018495,2]
[378016398,1754669448483,-553.09,0.00018495,2]
[378016399,1754669448492,-814.08,0.00018495,2]
[378016400,1754669448502,-808.04,0.00018495,2]
[378016401,1754669448511,-457.87,0.00018495,2]
[378016402,1754669448521,-1105.64,0.00018495,2]
[378016403,1754669448530,-584.06,0.00018495,2]
[378016404,1754669448540,-400.0,0.00018495,2]
[378016405,1754669448550,-630.82,0.00018495,2]
[378016406,1754669448560,-400.0,0.00018495,2]
[378016407,1754669448569,-400.0,0.00018495,2]
[378016408,1754669448579,-491.37,0.00018495,2]
[378016409,1754669448589,-423.21,0.00018495,2]
[378016410,1754669448599,-1250.67,0.00018495,2]
[378016411,1754669448609,-1281.81,0.00018495,2]
[378016412,1754669448618,-400.0,0.00018495,2]
[378016413,1754669448628,-400.0,0.00018495,2]
[378016414,1754669448638,-1423.91,0.00018495,2]
[378016415,1754669448651,-400.0,0.00018495,2]
[378016416,1754669448661,-400.0,0.00018495,2]
[378016417,1754669448671,-1446.64,0.00018495,2]
[378016418,1754669448680,-441.0,0.00018495,2]
[378016419,1754669448691,-452.32,0.00018495,2]
[378016420,1754669448703,-500.0,0.00018496,2]
[378016421,1754669448713,-500.0,0.00018496,2]
[378016422,1754669448722,-500.0,0.00018496,2]
[378016423,1754669448733,-500.0,0.00018496,2]
[378016424,1754669448743,-579.16,0.00018496,2]
[378016425,1754669448752,-579.16,0.00018496,2]
[378016426,1754669448762,-500.0,0.00018496,2]
[378016427,1754669448772,-500.0,0.00018496,2]
[378016428,1754669448781,-500.0,0.00018496,2]
[378016429,1754669448791,-181.52217343,0.00018496,2]
[378016430,1754669448800,-500.0,0.00018496,2]
[378016431,1754669448810,-500.0,0.00018496,2]
[378016432,1754669448819,-500.0,0.00018496,2]
[378016433,1754669448829,-500.0,0.00018496,2]
[378016434,1754669448839,-500.0,0.00018496,2]
[378016435,1754669448848,-500.0,0.00018496,2]
[378016436,1754669448858,-500.0,0.00018496,2]
[378016437,1754669448868,-500.0,0.00018496,2]
[378016438,1754669448878,-500.0,0.00018497,2]
[378016439,1754669448888,-400.0,0.00018497,2]
[378016440,1754669448898,-500.0,0.00018497,2]
[378016441,1754669448908,-792.81,0.00018497,2]
[378016442,1754669448919,-3793.3,0.00018497,2]
[378016443,1754669448929,-451.66,0.00018497,2]
[378016444,1754669448939,-400.0,0.00018497,2]
[378016445,1754669448949,-400.0,0.00018497,2]
[378016446,1754669448958,-400.0,0.00018497,2]
[378016447,1754669448967,-2754.9,0.00018497,2]
[378016448,1754669448977,-1320.5,0.00018497,2]
[378016449,1754669448987,-3846.14,0.00018497,2]
[378016450,1754669448996,-4806.2,0.00018497,2]
[378016451,1754669449006,-1000.0,0.00018497,2]
[378016452,1754669449015,-2134.23,0.00018497,2]
[378016453,1754669449024,-400.0,0.00018497,2]
[378016454,1754669449034,-3166.04,0.00018497,2]
[378016455,1754669449044,-2847.9,0.00018497,2]
[378016456,1754669449053,-9097.8,0.00018497,2]
[378016457,1754669449062,-1805.08,0.00018497,2]
[378016458,1754669449072,-2223.45,0.00018497,2]
[378016459,1754669449081,-6174.0,0.00018497,2]
[378016460,1754669449091,-500.0,0.00018497,2]
[378016461,1754669449100,-2054.29,0.00018497,2]
[378016462,1754669449109,-1472.26,0.00018497,2]
[378016463,1754669449119,-1850.46,0.00018497,2]
[378016464,1754669449128,-494.97,0.00018497,2]
[378016465,1754669449138,-3935.11,0.00018497,2]
[378016466,1754669449148,-400.0,0.00018497,2]
[378016467,1754669449158,-2515.89,0.00018497,2]
[378016468,1754669449168,-1608.52,0.00018497,2]
[378016469,1754669449179,-1303.48,0.00018497,2]
[378016470,1754669449189,-4223.69,0.00018497,2]
[378016471,1754669449199,-1741.72,0.00018497,2]
[378016472,1754669449208,-3140.44,0.00018497,2]
[378016473,1754669449218,-2410.98,0.00018497,2]
[378016474,1754669449229,-2021.3,0.00018497,2]
[378016475,1754669449239,-491.68,0.00018497,2]
[378016476,1754669449249,-1000.0,0.000185,6]
[378016477,1754669449259,-500.0,0.00018507,2]
[378016478,1754669449268,-999.99,0.00018533,2]
[378016479,1754669449278,-499.99,0.00018533,2]
[378016480,1754669449287,-9999.99,0.00018533,2]
[378016481,1754669449297,-1505.56,0.00018533,2]
[378016482,1754669449306,-7134.63,0.00018533,2]
[378016483,1754669449315,-6763.7,0.00018533,2]
[378016484,1754669449325,-8175.48,0.00018533,2]
[378016485,1754669449335,-150.99,0.00018533,2]
[378016486,1754669449344,-150.99,0.00018533,2]
[378016487,1754669449354,-299.99,0.00018533,4]
[378016488,1754669449363,-3456.85,0.00018533,2]
[378016489,1754669449372,-5885.79142521,0.00018537,2]
[378016490,1754669449382,-1650.0,0.00018584,2]
[378016491,1754669449392,-7095.10274429,0.00018595,2]
[378016492,1754669449401,-1600.0,0.000186,6]
[378016493,1754669449411,-189.46591014,0.00018648,2]
[378016494,1754669449422,-579.16,0.0001865,2]
[378016495,1754669449432,-511.59,0.0001865,2]
[378016496,1754669449441,-500.0,0.0001865,2]
[378016497,1754669449451,-2218.04,0.0001865,2]
[378016498,1754669449461,-5885.79142521,0.00018658,2]
[378016499,1754669449470,-1001.26841938,0.00018669,2]
[378016500,1754669449480,-400.0,0.00018669,2]
[378016501,1754669449490,-589.79,0.00018669,2]
[378016502,1754669449500,-437.48,0.00018669,2]
[378016503,1754669449510,-400.0,0.00018669,2]
[378016504,1754669449519,-778.37,0.00018669,2]
[378016505,1754669449529,-1040.75,0.00018669,2]
[378016506,1754669449538,-400.0,0.00018669,2]
[378016507,1754669449548,-400.0,0.00018669,2]
[378016508,1754669449557,-582.38,0.00018669,2]
[378016509,1754669449567,-832.82,0.00018669,2]
[378016510,1754669449576,-400.0,0.00018669,2]
[378016511,1754669449586,-730.78,0.00018669,2]
[378016512,1754669449595,-978.87,0.00018669,2]
[378016513,1754669449606,-859.46,0.00018669,2]
[378016514,1754669449616,-160.87409099,0.00018669,2]
[378016515,1754669449626,-1294.52,0.00018669,2]
[378016516,1754669449636,-400.0,0.00018669,2]
[378016517,1754669449645,-499.54953668,0.00018669,2]
[378016518,1754669449654,-400.0,0.00018669,2]
[378016519,1754669449663,-1018.54,0.00018669,2]
[378016520,1754669449675,-400.0,0.00018669,2]
[378016521,1754669449685,-595.29,0.00018669,2]
[378016522,1754669449695,-175.29,0.00018669,2]
[378016523,1754669449705,-670.33,0.00018669,2]
[378016524,1754669449714,-400.0,0.00018669,2]
[378016525,1754669449724,-400.0,0.00018669,2]
[378016526,1754669449735,-400.0,0.00018669,2]
[378016527,1754669449744,-410.61,0.00018669,2]
[378016528,1754669449754,-1685.44,0.00018669,2]
[378016529,1754669449763,-504.11,0.00018669,2]
[378016530,1754669449774,-400.07,0.00018669,2]
[378016531,1754669449785,-4814.45,0.00018669,2]
[378016532,1754669449795,-400.0,0.00018669,2]
[378016533,1754669449805,-475.53,0.00018669,2]
[378016534,1754669449815,-500.0,0.00018669,2]
[378016535,1754669449824,-715.42,0.00018669,2]
[378016536,1754669449834,-400.0,0.00018669,2]
[378016537,1754669449844,-601.22,0.00018669,2]
[378016538,1754669449853,-155.776285,0.00018669,2]
[378016539,1754669449864,-400.0,0.00018669,2]
[378016540,1754669449873,-586.59,0.00018669,2]
[378016541,1754669449882,-1231.15,0.00018669,2]
[378016542,1754669449892,-400.0,0.00018669,2]
[378016543,1754669449901,-552.5,0.00018669,2]
[378016544,1754669449910,-152.542267,0.00018669,2]
[378016545,1754669449922,-2455.66,0.00018669,2]
[378016546,1754669449931,-1053.85,0.00018669,2]
[378016547,1754669449940,-224.907018,0.00018669,2]
[378016548,1754669449950,-905.25,0.00018669,2]
[378016549,1754669449959,-2834.45,0.00018669,2]
[378016550,1754669449968,-500.0,0.00018669,2]
[378016551,1754669449978,-450.88533743,0.00018669,2]
[378016552,1754669449988,-400.0,0.00018669,2]
[378016553,1754669449997,-400.0,0.00018669,2]
[378016554,1754669450006,-1433.1,0.00018669,2]
[378016555,1754669450016,-1066.3,0.00018669,2]
[378016556,1754669450025,-1410.13,0.00018669,2]
[378016557,1754669450035,-500.0,0.00018669,2]
[378016558,1754669450044,-400.0,0.00018669,2]
[378016559,1754669450053,-944.36,0.00018669,2]
[378016560,1754669450062,-518.56,0.00018669,2]
[378016561,1754669450071,-1050.54,0.00018669,2]
[378016562,1754669450080,-754.73,0.00018669,2]
[378016563,1754669450089,-393.79365509,0.00018669,2]
[378016564,1754669450098,-591.08,0.00018669,2]
[378016565,1754669450107,-400.0,0.00018669,2]
[378016566,1754669450116,-154.36811355,0.00018669,2]
[378016567,1754669450126,-1107.48,0.00018669,2]
[378016568,1754669450135,-469.73,0.00018669,2]
[378016569,1754669450144,-400.0,0.00018669,2]
[378016570,1754669450154,-3687.73,0.00018669,2]
[378016571,1754669450163,-531.1,0.00018669,2]
[378016572,1754669450175,-490.29,0.00018669,2]
[378016573,1754669450184,-834.33,0.00018669,2]
[378016574,1754669450194,-667.47,0.00018669,2]
[378016575,1754669450204,-2574.42,0.00018669,2]
[378016576,1754669450213,-3938.15,0.00018669,2]
[378016577,1754669450223,-1036.67,0.00018669,2]
[378016578,1754669450233,-1800.54,0.00018669,2]
[378016579,1754669450243,-3054.85,0.00018669,2]